[Event "Titled Tuesday Blitz June 21 Early 2022"]
[White "Hamidi, Amir Mohammad"]
[Black "Heinemann, Josefine"]
[WhiteFideId "12563285"]
[BlackFideId "12900460"]
[WhiteElo "2283"]
[BlackElo "2300"]
[Result "0-1"]
[Round "05"]
[TimeControl "180+1"]
[Date "2022.06.22"]
[WhiteClock "0:00:26"]
[BlackClock "0:01:08"]

1. d4 {[%clk 0:03:00]}  Nf6 {[%clk 0:02:59]} 2. c4 {[%clk 0:03:00]}  e6 {[%clk 0:02:59]} 3. Nc3 {[%clk 0:03:00]}  Bb4 {[%clk 0:02:59]} 4. e3 {[%clk 0:02:59]}  O-O {[%clk 0:02:58]} 5. Ne2 {[%clk 0:02:59]}  Re8 {[%clk 0:02:56]} 6. a3 {[%clk 0:02:57]}  Bf8 {[%clk 0:02:56]} 7. Ng3 {[%clk 0:02:56]}  d5 {[%clk 0:02:53]} 8. cxd5 {[%clk 0:02:53]}  exd5 {[%clk 0:02:53]} 9. Bd3 {[%clk 0:02:54]}  c5 {[%clk 0:02:47]} 10. O-O {[%clk 0:02:43]}  Nc6 {[%clk 0:02:46]} 11. dxc5 {[%clk 0:02:38]}  Bxc5 {[%clk 0:02:45]} 12. b4 {[%clk 0:02:39]}  Bd6 {[%clk 0:02:42]} 13. Nce2 {[%clk 0:02:36]}  h5 {[%clk 0:02:32]} 14. Bb2 {[%clk 0:02:12]}  h4 {[%clk 0:02:24]} 15. Nf5 {[%clk 0:02:11]}  h3 {[%clk 0:02:23]} 16. g3 {[%clk 0:02:09]}  Bf8 {[%clk 0:02:14]} 17. Nf4 {[%clk 0:02:01]}  Ne5 {[%clk 0:02:12]} 18. Rc1 {[%clk 0:01:55]}  a5 {[%clk 0:02:01]} 19. b5 {[%clk 0:01:54]}  g6 {[%clk 0:01:59]} 20. Nd4 {[%clk 0:01:52]}  a4 {[%clk 0:01:51]} 21. Re1 {[%clk 0:01:28]}  g5 {[%clk 0:01:46]} 22. Nh5 {[%clk 0:00:54]}  Bg4 {[%clk 0:01:44]} 23. Nxf6+ {[%clk 0:00:53]}  Qxf6 {[%clk 0:01:45]} 24. Be2 {[%clk 0:00:49]}  Bxe2 {[%clk 0:01:29]} 25. Qxe2 {[%clk 0:00:49]}  g4 {[%clk 0:01:28]} 26. Rc7 {[%clk 0:00:44]}  Qg6 {[%clk 0:01:18]} 27. Rxb7 {[%clk 0:00:41]}  Qe4 {[%clk 0:01:16]} 28. Qf1 {[%clk 0:00:37]}  Bc5 {[%clk 0:01:14]} 29. f3 {[%clk 0:00:33]}  Nxf3+ {[%clk 0:01:11]} 30. Nxf3 {[%clk 0:00:32]}  gxf3 {[%clk 0:01:12]} 31. Bc1 {[%clk 0:00:26]}  d4 {[%clk 0:01:10]} 32. Qc4 {[%clk 0:00:26]}  f2+ {[%clk 0:01:08]} 0-1


[Site "https://www.chess.com"]

[Event "Titled Tuesday Blitz June 21 Early 2022"]
[White "Hartikainen, Jarmo"]
[Black "Vidonyak, Roman"]
[WhiteFideId "503134"]
[BlackFideId "14100622"]
[WhiteElo "2145"]
[BlackElo "2386"]
[Result "1-0"]
[Round "05"]
[TimeControl "180+1"]
[Date "2022.06.22"]
[WhiteClock "0:00:03"]
[BlackClock "0:00:01"]

1. e4 {[%clk 0:03:00]}  c5 {[%clk 0:02:59]} 2. c3 {[%clk 0:03:00]}  d5 {[%clk 0:02:59]} 3. exd5 {[%clk 0:02:59]}  Qxd5 {[%clk 0:02:59]} 4. d4 {[%clk 0:02:59]}  Nc6 {[%clk 0:02:57]} 5. Nf3 {[%clk 0:02:59]}  cxd4 {[%clk 0:02:56]} 6. cxd4 {[%clk 0:02:58]}  e5 {[%clk 0:02:54]} 7. Nc3 {[%clk 0:02:46]}  Bb4 {[%clk 0:02:54]} 8. Be3 {[%clk 0:02:30]}  Bg4 {[%clk 0:02:33]} 9. Be2 {[%clk 0:02:14]}  e4 {[%clk 0:02:14]} 10. Nd2 {[%clk 0:01:46]}  Bxc3 {[%clk 0:01:55]} 11. bxc3 {[%clk 0:01:45]}  Bxe2 {[%clk 0:01:54]} 12. Qxe2 {[%clk 0:01:45]}  Nf6 {[%clk 0:01:53]} 13. O-O {[%clk 0:01:44]}  O-O {[%clk 0:01:53]} 14. c4 {[%clk 0:01:35]}  Qf5 {[%clk 0:01:50]} 15. Rab1 {[%clk 0:01:30]}  b6 {[%clk 0:01:46]} 16. f3 {[%clk 0:01:25]}  exf3 {[%clk 0:01:33]} 17. Rxf3 {[%clk 0:01:23]}  Qd7 {[%clk 0:01:32]} 18. d5 {[%clk 0:01:04]}  Ne5 {[%clk 0:01:28]} 19. Rxf6 {[%clk 0:00:57]}  gxf6 {[%clk 0:01:26]} 20. Bh6 {[%clk 0:00:52]}  Rfe8 {[%clk 0:01:23]} 21. Ne4 {[%clk 0:00:32]}  Kh8 {[%clk 0:00:31]} 22. Nxf6 {[%clk 0:00:27]}  Qf5 {[%clk 0:00:25]} 23. Rf1 {[%clk 0:00:19]}  Qg6 {[%clk 0:00:19]} 24. Nxe8 {[%clk 0:00:17]}  Rxe8 {[%clk 0:00:20]} 25. Bf4 {[%clk 0:00:15]}  f6 {[%clk 0:00:18]} 26. Qb2 {[%clk 0:00:13]}  Qe4 {[%clk 0:00:16]} 27. Kh1 {[%clk 0:00:12]}  Qd3 {[%clk 0:00:14]} 28. Qf2 {[%clk 0:00:10]}  Qf5 {[%clk 0:00:02]} 29. Bxe5 {[%clk 0:00:08]}  Qxe5 {[%clk 0:00:03]} 30. h3 {[%clk 0:00:05]}  Kg7 {[%clk 0:00:04]} 31. Qf3 {[%clk 0:00:05]}  Rf8 {[%clk 0:00:02]} 32. Qg4+ {[%clk 0:00:05]}  Kh8 {[%clk 0:00:03]} 33. Rf5 {[%clk 0:00:05]}  Qe1+ {[%clk 0:00:02]} 34. Kh2 {[%clk 0:00:05]}  Qc3 {[%clk 0:00:03]} 35. Qh4 {[%clk 0:00:04]}  Rf7 {[%clk 0:00:02]} 36. Qf4 {[%clk 0:00:03]}  Rf8 {[%clk 0:00:01]} 37. d6 {[%clk 0:00:03]} 1-0


[Site "https://www.chess.com"]

[Event "Titled Tuesday Blitz June 21 Early 2022"]
[White "Ibrahimli, Murad"]
[Black "Starozhilov, Leonid"]
[WhiteFideId "13410229"]
[BlackFideId "14106752"]
[WhiteElo "2109"]
[BlackElo "2414"]
[Result "1-0"]
[Round "05"]
[TimeControl "180+1"]
[Date "2022.06.21"]
[WhiteClock "0:00:21"]
[BlackClock "0:00:05"]

1. d4 {[%clk 0:03:00]}  Nf6 {[%clk 0:03:00]} 2. c4 {[%clk 0:03:00]}  g6 {[%clk 0:03:00]} 3. Nc3 {[%clk 0:03:00]}  d6 {[%clk 0:02:59]} 4. e4 {[%clk 0:02:59]}  Bg7 {[%clk 0:03:00]} 5. Be2 {[%clk 0:02:59]}  O-O {[%clk 0:02:59]} 6. Be3 {[%clk 0:03:00]}  e5 {[%clk 0:02:53]} 7. d5 {[%clk 0:03:00]}  a5 {[%clk 0:02:52]} 8. g4 {[%clk 0:02:57]}  Na6 {[%clk 0:02:51]} 9. h4 {[%clk 0:02:47]}  Nc5 {[%clk 0:02:50]} 10. f3 {[%clk 0:02:48]}  h5 {[%clk 0:02:44]} 11. g5 {[%clk 0:02:44]}  Nfd7 {[%clk 0:02:37]} 12. Qd2 {[%clk 0:02:44]}  Nb6 {[%clk 0:02:35]} 13. Nh3 {[%clk 0:02:37]}  a4 {[%clk 0:02:15]} 14. Nf2 {[%clk 0:02:36]}  Bd7 {[%clk 0:02:11]} 15. O-O-O {[%clk 0:02:19]}  Qe7 {[%clk 0:02:03]} 16. Kb1 {[%clk 0:02:17]}  Rfc8 {[%clk 0:01:59]} 17. Bxc5 {[%clk 0:01:50]}  dxc5 {[%clk 0:01:59]} 18. d6 {[%clk 0:01:51]}  Qe8 {[%clk 0:01:42]} 19. dxc7 {[%clk 0:01:51]}  Rxc7 {[%clk 0:01:43]} 20. a3 {[%clk 0:01:36]}  Be6 {[%clk 0:01:34]} 21. Nd5 {[%clk 0:01:36]}  Nxd5 {[%clk 0:01:28]} 22. exd5 {[%clk 0:01:37]}  Bd7 {[%clk 0:01:24]} 23. Ne4 {[%clk 0:01:37]}  Bf5 {[%clk 0:01:22]} 24. Ka2 {[%clk 0:01:33]}  Bxe4 {[%clk 0:01:16]} 25. fxe4 {[%clk 0:01:34]}  Bf8 {[%clk 0:01:15]} 26. Rhf1 {[%clk 0:01:30]}  Ra6 {[%clk 0:00:55]} 27. Rf3 {[%clk 0:01:26]}  Bd6 {[%clk 0:00:43]} 28. Rf6 {[%clk 0:01:24]}  Qd8 {[%clk 0:00:37]} 29. Rdf1 {[%clk 0:01:23]}  b6 {[%clk 0:00:32]} 30. Qc3 {[%clk 0:01:19]}  Raa7 {[%clk 0:00:31]} 31. Rxd6 {[%clk 0:01:12]}  Qxd6 {[%clk 0:00:30]} 32. Rf6 {[%clk 0:01:13]}  Qd8 {[%clk 0:00:25]} 33. Qxe5 {[%clk 0:01:12]}  Re7 {[%clk 0:00:24]} 34. Qf4 {[%clk 0:01:11]}  Qe8 {[%clk 0:00:22]} 35. Bd3 {[%clk 0:00:59]}  Rab7 {[%clk 0:00:20]} 36. Rc6 {[%clk 0:00:47]}  Re5 {[%clk 0:00:14]} 37. Qf6 {[%clk 0:00:43]}  Kh7 {[%clk 0:00:13]} 38. Rxb6 {[%clk 0:00:40]}  Rxb6 {[%clk 0:00:08]} 39. Qxb6 {[%clk 0:00:41]}  Rxe4 {[%clk 0:00:08]} 40. Bxe4 {[%clk 0:00:24]}  Qxe4 {[%clk 0:00:09]} 41. Qxc5 {[%clk 0:00:24]}  Qxh4 {[%clk 0:00:09]} 42. d6 {[%clk 0:00:24]}  Qg4 {[%clk 0:00:09]} 43. Qc7 {[%clk 0:00:23]}  h4 {[%clk 0:00:04]} 44. Qxf7+ {[%clk 0:00:22]}  Kh8 {[%clk 0:00:05]} 45. d7 {[%clk 0:00:21]} 1-0


[Site "https://www.chess.com"]

[Event "Titled Tuesday Blitz June 21 Early 2022"]
[White "Jaferian, Koosha"]
[Black "Baches Garcia, Guillermo"]
[WhiteFideId "12507440"]
[BlackFideId "2209764"]
[WhiteElo "2030"]
[BlackElo "2460"]
[Result "1/2-1/2"]
[Round "05"]
[TimeControl "180+1"]
[Date "2022.06.22"]
[WhiteClock "0:01:43"]
[BlackClock "0:00:26"]

1. Nf3 {[%clk 0:03:00]}  Nf6 {[%clk 0:02:59]} 2. b3 {[%clk 0:03:01]}  b6 {[%clk 0:02:58]} 3. Bb2 {[%clk 0:03:01]}  Bb7 {[%clk 0:02:58]} 4. g3 {[%clk 0:03:02]}  g6 {[%clk 0:02:58]} 5. Bg2 {[%clk 0:03:03]}  Bg7 {[%clk 0:02:58]} 6. O-O {[%clk 0:03:04]}  O-O {[%clk 0:02:58]} 7. c4 {[%clk 0:03:04]}  c5 {[%clk 0:02:58]} 8. d4 {[%clk 0:03:05]}  cxd4 {[%clk 0:02:57]} 9. Nxd4 {[%clk 0:03:06]}  Bxg2 {[%clk 0:02:57]} 10. Kxg2 {[%clk 0:03:07]}  d5 {[%clk 0:02:51]} 11. Nd2 {[%clk 0:03:06]}  Qd7 {[%clk 0:02:39]} 12. cxd5 {[%clk 0:03:06]}  Qxd5+ {[%clk 0:02:30]} 13. N4f3 {[%clk 0:03:07]}  Nc6 {[%clk 0:02:27]} 14. Nc4 {[%clk 0:03:07]}  Rfd8 {[%clk 0:02:24]} 15. Qxd5 {[%clk 0:03:02]}  Rxd5 {[%clk 0:02:23]} 16. Rac1 {[%clk 0:03:01]}  Na5 {[%clk 0:01:55]} 17. Ne3 {[%clk 0:02:45]}  Rd7 {[%clk 0:01:46]} 18. Ne5 {[%clk 0:02:42]}  Rd2 {[%clk 0:01:38]} 19. Rc2 {[%clk 0:02:37]}  Rxc2 {[%clk 0:01:26]} 20. Nxc2 {[%clk 0:02:38]}  Rd8 {[%clk 0:01:23]} 21. Bc3 {[%clk 0:02:36]}  Rc8 {[%clk 0:01:19]} 22. Bxa5 {[%clk 0:02:29]}  Rxc2 {[%clk 0:01:17]} 23. Bb4 {[%clk 0:02:30]}  Nd5 {[%clk 0:01:03]} 24. Nd3 {[%clk 0:02:19]}  Rxe2 {[%clk 0:00:59]} 25. Rc1 {[%clk 0:02:05]}  Nxb4 {[%clk 0:00:50]} 26. Nxb4 {[%clk 0:02:06]}  Bd4 {[%clk 0:00:48]} 27. Rc2 {[%clk 0:02:01]}  Rxc2 {[%clk 0:00:44]} 28. Nxc2 {[%clk 0:02:02]}  Bc5 {[%clk 0:00:44]} 29. f4 {[%clk 0:02:02]}  f6 {[%clk 0:00:42]} 30. Kf3 {[%clk 0:02:03]}  Kf7 {[%clk 0:00:40]} 31. Ne1 {[%clk 0:02:03]}  e5 {[%clk 0:00:40]} 32. fxe5 {[%clk 0:02:01]}  fxe5 {[%clk 0:00:41]} 33. Ke4 {[%clk 0:02:02]}  Ke6 {[%clk 0:00:41]} 34. Nd3 {[%clk 0:02:03]}  Bd4 {[%clk 0:00:41]} 35. h3 {[%clk 0:02:02]}  h5 {[%clk 0:00:39]} 36. g4 {[%clk 0:02:02]}  hxg4 {[%clk 0:00:40]} 37. hxg4 {[%clk 0:02:03]}  Kf6 {[%clk 0:00:39]} 38. Nb4 {[%clk 0:01:59]}  a5 {[%clk 0:00:34]} 39. Nc6 {[%clk 0:01:54]}  Kg5 {[%clk 0:00:34]} 40. Kf3 {[%clk 0:01:47]}  Bc3 {[%clk 0:00:32]} 41. Ne7 {[%clk 0:01:45]}  Bd4 {[%clk 0:00:25]} 42. Nc6 {[%clk 0:01:44]}  Bc3 {[%clk 0:00:25]} 43. Ne7 {[%clk 0:01:44]}  Bd4 {[%clk 0:00:26]} 44. Nc6 {[%clk 0:01:43]} 1/2-1/2


[Site "https://www.chess.com"]

[Event "Titled Tuesday Blitz June 21 Early 2022"]
[White "Jakubowska, Anna"]
[Black "Tinmaz, Kerem"]
[WhiteFideId "1121952"]
[BlackFideId "44559151"]
[WhiteElo "1878"]
[BlackElo "1443"]
[Result "0-1"]
[Round "05"]
[TimeControl "180+1"]
[Date "2022.06.22"]
[WhiteClock "0:00:09"]
[BlackClock "0:00:07"]

1. e4 {[%clk 0:02:55]}  c6 {[%clk 0:02:59]} 2. d4 {[%clk 0:02:54]}  d5 {[%clk 0:02:59]} 3. e5 {[%clk 0:02:54]}  Bf5 {[%clk 0:02:59]} 4. Nf3 {[%clk 0:02:54]}  e6 {[%clk 0:02:59]} 5. Be2 {[%clk 0:02:54]}  h6 {[%clk 0:02:59]} 6. O-O {[%clk 0:02:51]}  c5 {[%clk 0:02:59]} 7. Be3 {[%clk 0:02:50]}  Qb6 {[%clk 0:02:40]} 8. Nc3 {[%clk 0:02:47]}  Nd7 {[%clk 0:01:54]} 9. dxc5 {[%clk 0:02:41]}  Bxc5 {[%clk 0:01:43]} 10. Bxc5 {[%clk 0:02:40]}  Qxc5 {[%clk 0:01:14]} 11. Nb5 {[%clk 0:02:36]}  Ne7 {[%clk 0:01:10]} 12. b4 {[%clk 0:02:33]}  Qb6 {[%clk 0:01:03]} 13. Nd6+ {[%clk 0:02:30]}  Kf8 {[%clk 0:01:02]} 14. Kh1 {[%clk 0:02:16]}  Nxe5 {[%clk 0:00:31]} 15. Nxf5 {[%clk 0:02:14]}  Nxf3 {[%clk 0:00:32]} 16. Nxe7 {[%clk 0:02:11]}  Nd4 {[%clk 0:00:32]} 17. Ng6+ {[%clk 0:01:52]}  fxg6 {[%clk 0:00:32]} 18. Bd3 {[%clk 0:01:53]}  Kf7 {[%clk 0:00:25]} 19. Qg4 {[%clk 0:01:50]}  Nf5 {[%clk 0:00:25]} 20. Qf3 {[%clk 0:01:47]}  Kg8 {[%clk 0:00:16]} 21. c4 {[%clk 0:01:45]}  Qc6 {[%clk 0:00:11]} 22. cxd5 {[%clk 0:01:40]}  Qxd5 {[%clk 0:00:10]} 23. Be4 {[%clk 0:01:40]}  Qe5 {[%clk 0:00:07]} 24. Rfe1 {[%clk 0:01:36]}  Rf8 {[%clk 0:00:06]} 25. Bxb7 {[%clk 0:01:32]}  Qf6 {[%clk 0:00:06]} 26. Rac1 {[%clk 0:00:57]}  Kh7 {[%clk 0:00:05]} 27. Be4 {[%clk 0:00:52]}  Nd4 {[%clk 0:00:05]} 28. Qxf6 {[%clk 0:00:51]}  gxf6 {[%clk 0:00:03]} 29. f3 {[%clk 0:00:50]}  Rf7 {[%clk 0:00:03]} 30. Rc4 {[%clk 0:00:48]}  e5 {[%clk 0:00:03]} 31. Bd5 {[%clk 0:00:48]}  Rd7 {[%clk 0:00:03]} 32. Be4 {[%clk 0:00:47]}  f5 {[%clk 0:00:03]} 33. Bb1 {[%clk 0:00:47]}  Re8 {[%clk 0:00:03]} 34. a4 {[%clk 0:00:44]}  Kg7 {[%clk 0:00:04]} 35. b5 {[%clk 0:00:44]}  Kf6 {[%clk 0:00:04]} 36. Kg1 {[%clk 0:00:41]}  Ne6 {[%clk 0:00:04]} 37. Bc2 {[%clk 0:00:37]}  Rd2 {[%clk 0:00:04]} 38. Rc6 {[%clk 0:00:36]}  Ke7 {[%clk 0:00:02]} 39. Bb3 {[%clk 0:00:35]}  Nd4 {[%clk 0:00:03]} 40. Rxe5+ {[%clk 0:00:33]}  Kd7 {[%clk 0:00:02]} 41. Rd5+ {[%clk 0:00:22]}  Ke7 {[%clk 0:00:02]} 42. Rc7+ {[%clk 0:00:12]}  Kf8 {[%clk 0:00:02]} 43. Rc1 {[%clk 0:00:06]}  Nxb3 {[%clk 0:00:02]} 44. Rf1 {[%clk 0:00:07]}  Rxd5 {[%clk 0:00:01]} 45. h4 {[%clk 0:00:05]}  Rd2 {[%clk 0:00:02]} 46. Rf2 {[%clk 0:00:04]}  Ree2 {[%clk 0:00:03]} 47. Rxe2 {[%clk 0:00:05]}  Rxe2 {[%clk 0:00:04]} 48. Kf1 {[%clk 0:00:05]}  Ra2 {[%clk 0:00:05]} 49. a5 {[%clk 0:00:06]}  Rxa5 {[%clk 0:00:05]} 50. Ke2 {[%clk 0:00:07]}  Rxb5 {[%clk 0:00:06]} 51. Kd3 {[%clk 0:00:08]}  Nc1+ {[%clk 0:00:06]} 52. Kc4 {[%clk 0:00:08]}  Rb2 {[%clk 0:00:06]} 53. Kc3 {[%clk 0:00:09]}  Rxg2 {[%clk 0:00:06]} 54. Kd4 {[%clk 0:00:08]}  Rh2 {[%clk 0:00:07]} 55. Ke5 {[%clk 0:00:09]}  Rxh4 {[%clk 0:00:07]} 56. Kf6 {[%clk 0:00:09]}  Rf4 {[%clk 0:00:07]} 0-1


[Site "https://www.chess.com"]

[Event "Titled Tuesday Blitz June 21 Early 2022"]
[White "Jakubowski, Krzysztof"]
[Black "Chernomordik, Pavel"]
[WhiteFideId "1112848"]
[BlackFideId "2804530"]
[WhiteElo "2365"]
[BlackElo "2220"]
[Result "0-1"]
[Round "05"]
[TimeControl "180+1"]
[Date "2022.06.22"]
[WhiteClock "0:00:01"]
[BlackClock "0:00:45"]

1. e4 {[%clk 0:03:00]}  g6 {[%clk 0:02:59]} 2. d4 {[%clk 0:02:58]}  Bg7 {[%clk 0:02:57]} 3. Nc3 {[%clk 0:02:57]}  d6 {[%clk 0:02:56]} 4. f4 {[%clk 0:02:55]}  a6 {[%clk 0:02:51]} 5. Nf3 {[%clk 0:02:52]}  b5 {[%clk 0:02:51]} 6. Bd3 {[%clk 0:02:50]}  Nd7 {[%clk 0:02:50]} 7. e5 {[%clk 0:02:38]}  c5 {[%clk 0:02:49]} 8. Be4 {[%clk 0:02:37]}  Rb8 {[%clk 0:02:49]} 9. O-O {[%clk 0:02:28]}  b4 {[%clk 0:02:41]} 10. Na4 {[%clk 0:02:22]}  Qa5 {[%clk 0:02:39]} 11. Bc6 {[%clk 0:02:02]}  Qc7 {[%clk 0:02:33]} 12. d5 {[%clk 0:01:56]}  Bb7 {[%clk 0:02:22]} 13. exd6 {[%clk 0:01:40]}  Qxd6 {[%clk 0:02:21]} 14. Bxd7+ {[%clk 0:01:29]}  Qxd7 {[%clk 0:02:19]} 15. Nxc5 {[%clk 0:01:28]}  Qxd5 {[%clk 0:02:17]} 16. Qxd5 {[%clk 0:01:17]}  Bxd5 {[%clk 0:02:17]} 17. Nxa6 {[%clk 0:01:16]}  Rb7 {[%clk 0:02:12]} 18. Rd1 {[%clk 0:01:13]}  Bc4 {[%clk 0:01:52]} 19. Nc5 {[%clk 0:01:09]}  Rc7 {[%clk 0:01:52]} 20. Nd3 {[%clk 0:01:05]}  Bxd3 {[%clk 0:01:46]} 21. cxd3 {[%clk 0:01:00]}  Nh6 {[%clk 0:01:45]} 22. d4 {[%clk 0:00:54]}  Nf5 {[%clk 0:01:40]} 23. g4 {[%clk 0:00:47]}  Nd6 {[%clk 0:01:39]} 24. Bd2 {[%clk 0:00:47]}  Rc2 {[%clk 0:01:36]} 25. Bxb4 {[%clk 0:00:40]}  Rxb2 {[%clk 0:01:35]} 26. Bxd6 {[%clk 0:00:36]}  exd6 {[%clk 0:01:35]} 27. Rdb1 {[%clk 0:00:35]}  Rxb1+ {[%clk 0:01:22]} 28. Rxb1 {[%clk 0:00:36]}  Ke7 {[%clk 0:01:17]} 29. Rb7+ {[%clk 0:00:32]}  Ke6 {[%clk 0:01:16]} 30. f5+ {[%clk 0:00:22]}  gxf5 {[%clk 0:01:15]} 31. gxf5+ {[%clk 0:00:22]}  Kxf5 {[%clk 0:01:08]} 32. Rxf7+ {[%clk 0:00:21]}  Kg6 {[%clk 0:01:07]} 33. Rd7 {[%clk 0:00:20]}  Ra8 {[%clk 0:01:06]} 34. Rxd6+ {[%clk 0:00:16]}  Kf5 {[%clk 0:01:04]} 35. Rd7 {[%clk 0:00:13]}  Bh6 {[%clk 0:01:01]} 36. Rxh7 {[%clk 0:00:09]}  Be3+ {[%clk 0:01:00]} 37. Kg2 {[%clk 0:00:06]}  Rxa2+ {[%clk 0:00:59]} 38. Kg3 {[%clk 0:00:07]}  Bf4+ {[%clk 0:00:56]} 39. Kh3 {[%clk 0:00:06]}  Rf2 {[%clk 0:00:55]} 40. Nh4+ {[%clk 0:00:02]}  Ke6 {[%clk 0:00:47]} 41. Kg4 {[%clk 0:00:01]}  Bxh2 {[%clk 0:00:45]} 0-1


[Site "https://www.chess.com"]

[Event "Titled Tuesday Blitz June 21 Early 2022"]
[White "Jobava, Baadur"]
[Black "Korchmar, Vasiliy"]
[WhiteFideId "13601520"]
[BlackFideId "24131750"]
[WhiteElo "2617"]
[BlackElo "2370"]
[Result "1-0"]
[Round "05"]
[TimeControl "180+1"]
[Date "2022.06.21"]
[WhiteClock "0:01:42"]
[BlackClock "0:00:05"]

1. b3 {[%clk 0:03:00]}  d5 {[%clk 0:02:59]} 2. Bb2 {[%clk 0:02:39]}  e6 {[%clk 0:02:58]} 3. g3 {[%clk 0:02:39]}  Nf6 {[%clk 0:02:58]} 4. Bg2 {[%clk 0:02:40]}  c5 {[%clk 0:02:53]} 5. d3 {[%clk 0:02:40]}  Nc6 {[%clk 0:02:53]} 6. Nd2 {[%clk 0:02:41]}  Be7 {[%clk 0:02:52]} 7. e4 {[%clk 0:02:41]}  b6 {[%clk 0:02:48]} 8. Ne2 {[%clk 0:02:40]}  Bb7 {[%clk 0:02:48]} 9. O-O {[%clk 0:02:41]}  Qc7 {[%clk 0:02:43]} 10. exd5 {[%clk 0:02:38]}  Nxd5 {[%clk 0:02:35]} 11. Bxg7 {[%clk 0:02:37]}  Rg8 {[%clk 0:02:35]} 12. Bb2 {[%clk 0:02:37]}  h5 {[%clk 0:02:35]} 13. c4 {[%clk 0:02:22]}  Ndb4 {[%clk 0:02:30]} 14. Nf4 {[%clk 0:02:22]}  O-O-O {[%clk 0:02:08]} 15. Qxh5 {[%clk 0:02:19]}  Nc2 {[%clk 0:02:05]} 16. Qxf7 {[%clk 0:02:14]}  N6d4 {[%clk 0:01:53]} 17. Bxd4 {[%clk 0:02:11]}  Nxd4 {[%clk 0:01:54]} 18. Nxe6 {[%clk 0:02:01]}  Ne2+ {[%clk 0:01:46]} 19. Kh1 {[%clk 0:02:02]}  Bxg2+ {[%clk 0:01:47]} 20. Kxg2 {[%clk 0:02:03]}  Qc6+ {[%clk 0:01:47]} 21. Ne4 {[%clk 0:01:58]}  Rxd3 {[%clk 0:00:43]} 22. Qxg8+ {[%clk 0:01:56]}  Kb7 {[%clk 0:00:43]} 23. f3 {[%clk 0:01:45]}  Nc3 {[%clk 0:00:15]} 24. Qf7 {[%clk 0:01:40]}  Nxe4 {[%clk 0:00:11]} 25. Qxe7+ {[%clk 0:01:41]}  Ka6 {[%clk 0:00:05]} 26. Nc7+ {[%clk 0:01:41]}  Ka5 {[%clk 0:00:05]} 27. Qxe4 {[%clk 0:01:42]} 1-0


[Site "https://www.chess.com"]

[Event "Titled Tuesday Blitz June 21 Early 2022"]
[White "Kalaiyalahan, Akshaya"]
[Black "Winkels, Marcel"]
[WhiteFideId "422894"]
[BlackFideId "1003887"]
[WhiteElo "1913"]
[BlackElo "1900"]
[Result "1-0"]
[Round "05"]
[TimeControl "180+1"]
[Date "2022.06.22"]
[WhiteClock "0:00:09"]
[BlackClock "0:00:15"]

1. c4 {[%clk 0:03:00]}  f5 {[%clk 0:02:58]} 2. Nc3 {[%clk 0:02:53]}  Nf6 {[%clk 0:02:58]} 3. d3 {[%clk 0:02:52]}  g6 {[%clk 0:02:58]} 4. e4 {[%clk 0:02:47]}  d6 {[%clk 0:02:57]} 5. exf5 {[%clk 0:02:44]}  Bxf5 {[%clk 0:02:57]} 6. Nf3 {[%clk 0:02:41]}  Bg7 {[%clk 0:02:56]} 7. Be2 {[%clk 0:02:39]}  O-O {[%clk 0:02:55]} 8. O-O {[%clk 0:02:40]}  Nc6 {[%clk 0:02:55]} 9. d4 {[%clk 0:02:40]}  Ne4 {[%clk 0:02:51]} 10. Nxe4 {[%clk 0:02:36]}  Bxe4 {[%clk 0:02:50]} 11. Be3 {[%clk 0:02:37]}  e5 {[%clk 0:02:47]} 12. d5 {[%clk 0:02:35]}  Ne7 {[%clk 0:02:45]} 13. Nd2 {[%clk 0:02:20]}  Bf5 {[%clk 0:02:41]} 14. Qb3 {[%clk 0:02:15]}  b6 {[%clk 0:02:39]} 15. Bd3 {[%clk 0:02:01]}  Bxd3 {[%clk 0:02:36]} 16. Qxd3 {[%clk 0:02:01]}  Nf5 {[%clk 0:02:37]} 17. Ne4 {[%clk 0:01:55]}  h6 {[%clk 0:02:28]} 18. Rac1 {[%clk 0:01:31]}  Qd7 {[%clk 0:02:18]} 19. b4 {[%clk 0:01:22]}  a5 {[%clk 0:02:16]} 20. a3 {[%clk 0:01:15]}  axb4 {[%clk 0:02:13]} 21. axb4 {[%clk 0:01:15]}  Ra2 {[%clk 0:02:14]} 22. c5 {[%clk 0:01:00]}  bxc5 {[%clk 0:02:08]} 23. bxc5 {[%clk 0:01:00]}  Nxe3 {[%clk 0:02:07]} 24. fxe3 {[%clk 0:01:00]}  Qe7 {[%clk 0:01:58]} 25. cxd6 {[%clk 0:00:45]}  cxd6 {[%clk 0:01:54]} 26. Rxf8+ {[%clk 0:00:40]}  Qxf8 {[%clk 0:01:53]} 27. h3 {[%clk 0:00:27]}  Qf5 {[%clk 0:01:45]} 28. Rf1 {[%clk 0:00:20]}  Qc8 {[%clk 0:01:29]} 29. Nxd6 {[%clk 0:00:16]}  Qc7 {[%clk 0:01:07]} 30. Qxg6 {[%clk 0:00:15]}  Ra6 {[%clk 0:01:00]} 31. Rf7 {[%clk 0:00:12]}  Ra1+ {[%clk 0:00:18]} 32. Kh2 {[%clk 0:00:11]}  Rh1+ {[%clk 0:00:17]} 33. Kxh1 {[%clk 0:00:10]}  Qc1+ {[%clk 0:00:16]} 34. Kh2 {[%clk 0:00:10]}  Qxe3 {[%clk 0:00:15]} 35. Qxg7# {[%clk 0:00:09]} 1-0


[Site "https://www.chess.com"]

[Event "Titled Tuesday Blitz June 21 Early 2022"]
[White "Khabinets, Ivan"]
[Black "Einarsson, Halldor Gretar"]
[WhiteFideId "14115980"]
[BlackFideId "2300150"]
[WhiteElo "2114"]
[BlackElo "2114"]
[Result "1-0"]
[Round "05"]
[TimeControl "180+1"]
[Date "2022.06.22"]
[WhiteClock "0:00:19"]
[BlackClock "0:00:10"]

1. c4 {[%clk 0:03:00]}  c5 {[%clk 0:02:58]} 2. Nc3 {[%clk 0:03:00]}  Nc6 {[%clk 0:02:56]} 3. Nf3 {[%clk 0:03:00]}  Nf6 {[%clk 0:02:56]} 4. g3 {[%clk 0:03:00]}  g6 {[%clk 0:02:55]} 5. Bg2 {[%clk 0:03:01]}  Bg7 {[%clk 0:02:55]} 6. d4 {[%clk 0:03:01]}  cxd4 {[%clk 0:02:54]} 7. Nxd4 {[%clk 0:03:02]}  Nxd4 {[%clk 0:02:53]} 8. Qxd4 {[%clk 0:03:02]}  O-O {[%clk 0:02:53]} 9. O-O {[%clk 0:03:01]}  d6 {[%clk 0:02:52]} 10. e4 {[%clk 0:02:50]}  Be6 {[%clk 0:02:43]} 11. Qd3 {[%clk 0:02:45]}  Rc8 {[%clk 0:02:32]} 12. b3 {[%clk 0:02:42]}  b5 {[%clk 0:02:22]} 13. Nxb5 {[%clk 0:02:27]}  Nxe4 {[%clk 0:02:07]} 14. Nd4 {[%clk 0:02:25]}  Nc5 {[%clk 0:01:43]} 15. Qe3 {[%clk 0:02:13]}  Qd7 {[%clk 0:01:12]} 16. Re1 {[%clk 0:02:02]}  Rfe8 {[%clk 0:01:05]} 17. Bb2 {[%clk 0:01:59]}  Bh3 {[%clk 0:01:03]} 18. Bh1 {[%clk 0:01:56]}  e5 {[%clk 0:01:00]} 19. Nb5 {[%clk 0:01:51]}  a6 {[%clk 0:00:59]} 20. Nc3 {[%clk 0:01:48]}  Ne6 {[%clk 0:00:56]} 21. Nd5 {[%clk 0:01:47]}  Rb8 {[%clk 0:00:52]} 22. Rad1 {[%clk 0:01:27]}  f5 {[%clk 0:00:39]} 23. Nb6 {[%clk 0:01:22]}  Qc7 {[%clk 0:00:35]} 24. Nd5 {[%clk 0:01:20]}  Qf7 {[%clk 0:00:33]} 25. Qd2 {[%clk 0:01:19]}  f4 {[%clk 0:00:30]} 26. Be4 {[%clk 0:01:15]}  Rf8 {[%clk 0:00:29]} 27. Bc3 {[%clk 0:01:01]}  Ng5 {[%clk 0:00:28]} 28. Bh1 {[%clk 0:00:24]}  h6 {[%clk 0:00:27]} 29. gxf4 {[%clk 0:00:19]}  exf4 {[%clk 0:00:25]} 30. Bxg7 {[%clk 0:00:19]}  Kxg7 {[%clk 0:00:23]} 31. Re7 {[%clk 0:00:18]}  Rbe8 {[%clk 0:00:14]} 32. Rde1 {[%clk 0:00:17]}  Kg8 {[%clk 0:00:12]} 33. Rxf7 {[%clk 0:00:17]}  Rxe1+ {[%clk 0:00:12]} 34. Qxe1 {[%clk 0:00:18]}  Kxf7 {[%clk 0:00:10]} 35. Qe7+ {[%clk 0:00:18]}  Kg8 {[%clk 0:00:10]} 36. Nf6+ {[%clk 0:00:18]}  Rxf6 {[%clk 0:00:10]} 37. Qxf6 {[%clk 0:00:19]} 1-0


[Site "https://www.chess.com"]